[Event "Early-Titled-Tuesday-Blitz-April-02-2024"]
[Site "Chess.com"]
[Date "2024.04.02"]
[Round "9"]
[White "Shahdad2007"]
[Black "wild3000"]
[Result "1-0"]
[WhiteElo "2572"]
[BlackElo "2363"]
[TimeControl "180+1"]
[EndTime "9:44:47 PDT"]
[Termination "Shahdad2007 won by resignation"]

1. Nf3 {[%clk 0:03:00.9]} 1... d5 {[%clk 0:02:58.7]} 2. c4 {[%clk 0:03:00.5]}
2... dxc4 {[%clk 0:02:56.1]} 3. Qa4+ {[%clk 0:02:47.9]} 3... Bd7 {[%clk
0:02:51.4]} 4. Qxc4 {[%clk 0:02:47.8]} 4... e6 {[%clk 0:02:51.2]} 5. g3 {[%clk
0:02:47.2]} 5... Bc6 {[%clk 0:02:50.8]} 6. Bg2 {[%clk 0:02:47.1]} 6... Nf6
{[%clk 0:02:51]} 7. O-O {[%clk 0:02:45.3]} 7... Nbd7 {[%clk 0:02:50]} 8. b3
{[%clk 0:02:41.6]} 8... Be7 {[%clk 0:02:49.4]} 9. Bb2 {[%clk 0:02:38.2]} 9...
O-O {[%clk 0:02:49.3]} 10. Qc2 {[%clk 0:02:31]} 10... Re8 {[%clk 0:02:38.5]} 11.
Nc3 {[%clk 0:02:29.1]} 11... Nf8 {[%clk 0:02:35.5]} 12. d4 {[%clk 0:02:27.7]}
12... Nd5 {[%clk 0:02:30.6]} 13. e4 {[%clk 0:02:25.2]} 13... Nxc3 {[%clk
0:02:29]} 14. Bxc3 {[%clk 0:02:25]} 14... Bb5 {[%clk 0:02:26.1]} 15. Rfe1 {[%clk
0:02:21.8]} 15... a5 {[%clk 0:02:25.8]} 16. a4 {[%clk 0:02:19]} 16... Bd7 {[%clk
0:02:19.4]} 17. Rad1 {[%clk 0:02:17.8]} 17... Ng6 {[%clk 0:02:11.4]} 18. h4
{[%clk 0:02:12.2]} 18... h5 {[%clk 0:02:10.6]} 19. Nd2 {[%clk 0:02:01.2]} 19...
b5 {[%clk 0:02:04]} 20. e5 {[%clk 0:01:45.2]} 20... bxa4 {[%clk 0:01:52.3]} 21.
bxa4 {[%clk 0:01:43.8]} 21... Ra7 {[%clk 0:01:44.1]} 22. Nc4 {[%clk 0:01:43.2]}
22... Bb4 {[%clk 0:01:41]} 23. Rb1 {[%clk 0:01:23.4]} 23... Bxc3 {[%clk
0:01:37.8]} 24. Qxc3 {[%clk 0:01:24.3]} 24... Bxa4 {[%clk 0:01:36.8]} 25. Nxa5
{[%clk 0:01:24.2]} 25... Ne7 {[%clk 0:01:28.9]} 26. Nc4 {[%clk 0:01:12.5]} 26...
Nd5 {[%clk 0:01:24.3]} 27. Qf3 {[%clk 0:01:10.9]} 27... Bc2 {[%clk 0:01:14.3]}
28. Rbc1 {[%clk 0:01:07.7]} 28... Bg6 {[%clk 0:01:14]} 29. Qb3 {[%clk
0:01:01.3]} 29... Qb8 {[%clk 0:01:10.7]} 30. Qxb8 {[%clk 0:00:59.2]} 30... Rxb8
{[%clk 0:01:10.3]} 31. Bxd5 {[%clk 0:00:59.2]} 31... exd5 {[%clk 0:01:11.2]} 32.
Ne3 {[%clk 0:00:59.8]} 32... Be4 {[%clk 0:01:10.5]} 33. Rc5 {[%clk 0:00:54.8]}
33... Rb4 {[%clk 0:01:04]} 34. Nxd5 {[%clk 0:00:51.7]} 34... Rxd4 {[%clk
0:00:58.1]} 35. Nxc7 {[%clk 0:00:51.5]} 35... Ra2 {[%clk 0:00:46.6]} 36. Nb5
{[%clk 0:00:44.4]} 36... Rdd2 {[%clk 0:00:35.4]} 37. Nc3 {[%clk 0:00:41.6]}
37... Rac2 {[%clk 0:00:28.5]} 38. Nxe4 {[%clk 0:00:40]} 38... Rd4 {[%clk
0:00:24.6]} 39. Rxc2 {[%clk 0:00:38.6]} 1-0

[Event "Early-Titled-Tuesday-Blitz-April-02-2024"]
[Site "Chess.com"]
[Date "2024.04.02"]
[Round "9"]
[White "Josgar05"]
[Black "tusplingher"]
[Result "0-1"]
[WhiteElo "2346"]
[BlackElo "2500"]
[TimeControl "180+1"]
[EndTime "9:44:47 PDT"]
[Termination "tusplingher won by resignation"]

1. Nf3 {[%clk 0:03:00.9]} 1... d5 {[%clk 0:02:54.4]} 2. b3 {[%clk 0:03:01.2]}
2... c5 {[%clk 0:02:53.5]} 3. Bb2 {[%clk 0:03:00.4]} 3... f6 {[%clk 0:02:53.3]}
4. d4 {[%clk 0:02:59.6]} 4... Nc6 {[%clk 0:02:52.2]} 5. e3 {[%clk 0:02:57.9]}
5... Bg4 {[%clk 0:02:46.1]} 6. Bb5 {[%clk 0:02:56.9]} 6... a6 {[%clk 0:02:44.8]}
7. Bxc6+ {[%clk 0:02:56]} 7... bxc6 {[%clk 0:02:45.1]} 8. O-O {[%clk 0:02:56.5]}
8... e6 {[%clk 0:02:45.1]} 9. c4 {[%clk 0:02:56.3]} 9... Be7 {[%clk 0:02:41.3]}
10. Nbd2 {[%clk 0:02:54.5]} 10... Nh6 {[%clk 0:02:40]} 11. Qc2 {[%clk
0:02:54.4]} 11... O-O {[%clk 0:02:38.3]} 12. dxc5 {[%clk 0:02:54.2]} 12... dxc4
{[%clk 0:02:34.5]} 13. Qxc4 {[%clk 0:02:52.1]} 13... Kh8 {[%clk 0:02:32]} 14.
Rad1 {[%clk 0:02:50.6]} 14... Qc7 {[%clk 0:02:29.2]} 15. h3 {[%clk 0:02:47]}
15... Bh5 {[%clk 0:02:27.7]} 16. Qxe6 {[%clk 0:02:44.9]} 16... Bxc5 {[%clk
0:02:26.9]} 17. Rc1 {[%clk 0:02:40.6]} 17... Bf7 {[%clk 0:02:12]} 18. Qe4 {[%clk
0:02:35.5]} 18... Bd5 {[%clk 0:02:04.1]} 19. Qc2 {[%clk 0:02:35.2]} 19... Bb4
{[%clk 0:01:54.3]} 20. e4 {[%clk 0:02:33.8]} 20... Bf7 {[%clk 0:01:54.3]} 21.
Qxc6 {[%clk 0:02:32.9]} 21... Qf4 {[%clk 0:01:54.7]} 22. g3 {[%clk 0:02:30]}
22... Qb8 {[%clk 0:01:48.8]} 23. Bxf6 {[%clk 0:02:07.1]} 23... Be8 {[%clk
0:01:32.8]} 24. Bxg7+ {[%clk 0:01:52.7]} 24... Kxg7 {[%clk 0:01:31.8]} 25. Qd5
{[%clk 0:01:50.4]} 25... Bg6 {[%clk 0:01:16]} 26. Nc4 {[%clk 0:01:38.4]} 26...
Rxf3 {[%clk 0:01:08.7]} 27. e5 {[%clk 0:01:38.6]} 27... Rd3 {[%clk 0:01:03.6]}
28. Qe6 {[%clk 0:01:32.4]} 28... Qf8 {[%clk 0:00:47.7]} 29. Nd6 {[%clk
0:01:31.4]} 29... Bxd6 {[%clk 0:00:47.3]} 30. exd6 {[%clk 0:01:31.9]} 30... Nf7
{[%clk 0:00:45.5]} 31. d7 {[%clk 0:01:26.3]} 31... Qd6 {[%clk 0:00:39.4]} 32.
Qxd6 {[%clk 0:01:02.9]} 32... Rxd6 {[%clk 0:00:39.1]} 33. Rc8 {[%clk 0:01:03]}
33... Ra7 {[%clk 0:00:38.4]} 34. d8=Q {[%clk 0:01:03.3]} 34... Rxd8 {[%clk
0:00:37.3]} 35. Rc6 {[%clk 0:01:03.9]} 35... Rd6 {[%clk 0:00:34.1]} 36. Rc5
{[%clk 0:01:03.3]} 36... Rad7 {[%clk 0:00:33.9]} 37. h4 {[%clk 0:01:03.4]} 37...
Rd1 {[%clk 0:00:33.7]} 38. Rxd1 {[%clk 0:01:03.5]} 38... Rxd1+ {[%clk 0:00:34]}
39. Kh2 {[%clk 0:01:04.4]} 39... Be4 {[%clk 0:00:33.3]} 40. g4 {[%clk
0:01:04.9]} 40... Rd2 {[%clk 0:00:32.1]} 41. Kg3 {[%clk 0:01:05]} 41... Rxa2
{[%clk 0:00:32.1]} 42. f3 {[%clk 0:01:03.8]} 42... Bc2 {[%clk 0:00:28.8]} 43. b4
{[%clk 0:01:02.7]} 43... Bd1 {[%clk 0:00:26.9]} 44. Rd5 {[%clk 0:01:00.7]} 44...
Ba4 {[%clk 0:00:24.9]} 45. Kf4 {[%clk 0:01:00.1]} 45... Bb5 {[%clk 0:00:23.2]}
46. h5 {[%clk 0:00:59.4]} 46... Ra3 {[%clk 0:00:23]} 47. g5 {[%clk 0:00:58.2]}
47... Bc6 {[%clk 0:00:19.9]} 48. h6+ {[%clk 0:00:57.4]} 48... Kg6 {[%clk
0:00:19.5]} 49. Rd6+ {[%clk 0:00:57.7]} 49... Nxd6 {[%clk 0:00:19.5]} 0-1

[Event "Early-Titled-Tuesday-Blitz-April-02-2024"]
[Site "Chess.com"]
[Date "2024.04.02"]
[Round "9"]
[White "InitiatingASC"]
[Black "DanylaBagrov"]
[Result "0-1"]
[WhiteElo "2342"]
[BlackElo "2497"]
[TimeControl "180+1"]
[EndTime "9:44:47 PDT"]
[Termination "DanylaBagrov won by resignation"]

1. d4 {[%clk 0:01:35.2]} 1... d6 {[%clk 0:02:56]} 2. c4 {[%clk 0:01:35]} 2... c6
{[%clk 0:02:55.2]} 3. g3 {[%clk 0:01:35.4]} 3... Nf6 {[%clk 0:02:49.5]} 4. Bg2
{[%clk 0:01:35.6]} 4... Bf5 {[%clk 0:02:41.5]} 5. Nf3 {[%clk 0:01:34.3]} 5... e6
{[%clk 0:02:40.2]} 6. O-O {[%clk 0:01:34.1]} 6... Nbd7 {[%clk 0:02:37.9]} 7. Nh4
{[%clk 0:01:34.3]} 7... Be7 {[%clk 0:02:27.9]} 8. Nxf5 {[%clk 0:01:33.2]} 8...
exf5 {[%clk 0:02:26.7]} 9. b3 {[%clk 0:01:31]} 9... O-O {[%clk 0:02:17.4]} 10.
d5 {[%clk 0:01:30.3]} 10... c5 {[%clk 0:02:13.1]} 11. Bb2 {[%clk 0:01:29.8]}
11... Ng4 {[%clk 0:02:05.7]} 12. Qc2 {[%clk 0:01:27.7]} 12... Bf6 {[%clk
0:02:02.7]} 13. Nc3 {[%clk 0:01:19.1]} 13... g6 {[%clk 0:01:56.4]} 14. Nb5
{[%clk 0:01:17.1]} 14... Qe7 {[%clk 0:01:47.4]} 15. a4 {[%clk 0:01:06.5]} 15...
a6 {[%clk 0:01:40.5]} 16. Nc3 {[%clk 0:01:01.3]} 16... Rfe8 {[%clk 0:01:39.5]}
17. e3 {[%clk 0:01:01.3]} 17... Bg7 {[%clk 0:01:36.4]} 18. a5 {[%clk 0:00:42]}
18... Rab8 {[%clk 0:01:34.4]} 19. Na4 {[%clk 0:00:41.4]} 19... Bxb2 {[%clk
0:01:27]} 20. Qxb2 {[%clk 0:00:41.6]} 20... Ngf6 {[%clk 0:01:23.8]} 21. b4
{[%clk 0:00:36.6]} 21... Rec8 {[%clk 0:01:16.5]} 22. b5 {[%clk 0:00:35.6]} 22...
Qe5 {[%clk 0:01:05.6]} 23. Rfb1 {[%clk 0:00:34.4]} 23... h5 {[%clk 0:00:58.7]}
24. Nb6 {[%clk 0:00:30.4]} 24... Qxb2 {[%clk 0:00:52.6]} 25. Rxb2 {[%clk
0:00:29.1]} 25... Nxb6 {[%clk 0:00:52.2]} 26. axb6 {[%clk 0:00:28.5]} 26... axb5
{[%clk 0:00:50.7]} 27. Rxb5 {[%clk 0:00:27.7]} 27... Ra8 {[%clk 0:00:48.7]} 28.
Rba5 {[%clk 0:00:28]} 28... Rxa5 {[%clk 0:00:47.1]} 29. Rxa5 {[%clk 0:00:27.7]}
29... Nd7 {[%clk 0:00:45.9]} 30. Rb5 {[%clk 0:00:19.5]} 30... Ra8 {[%clk
0:00:46]} 31. Bf1 {[%clk 0:00:20]} 31... Ra6 {[%clk 0:00:44.5]} 32. h4 {[%clk
0:00:19.1]} 32... Rxb6 {[%clk 0:00:42.9]} 33. Ra5 {[%clk 0:00:19.7]} 33... Rb1
{[%clk 0:00:40.5]} 34. Ra7 {[%clk 0:00:19.2]} 34... Ne5 {[%clk 0:00:38.9]} 35.
Kg2 {[%clk 0:00:18.6]} 35... Kg7 {[%clk 0:00:36.5]} 36. Be2 {[%clk 0:00:17.7]}
36... Rb2 {[%clk 0:00:36.2]} 37. Bf1 {[%clk 0:00:17.8]} 37... Ng4 {[%clk
0:00:34.6]} 0-1

[Event "Early-Titled-Tuesday-Blitz-April-02-2024"]
[Site "Chess.com"]
[Date "2024.04.02"]
[Round "9"]
[White "campochess"]
[Black "maurovargas01"]
[Result "1-0"]
[WhiteElo "2177"]
[BlackElo "1853"]
[TimeControl "180+1"]
[EndTime "9:44:47 PDT"]
[Termination "campochess won on time"]

1. Nf3 {[%clk 0:02:54.2]} 1... c6 {[%clk 0:02:57.1]} 2. b3 {[%clk 0:02:53.3]}
2... d5 {[%clk 0:02:54.6]} 3. Bb2 {[%clk 0:02:53.1]} 3... Nf6 {[%clk 0:02:53.8]}
4. d3 {[%clk 0:02:52.9]} 4... Bg4 {[%clk 0:02:53.6]} 5. Nbd2 {[%clk 0:02:47.2]}
5... e6 {[%clk 0:02:51.9]} 6. g3 {[%clk 0:02:47.3]} 6... Be7 {[%clk 0:02:49.1]}
7. Bg2 {[%clk 0:02:47.3]} 7... O-O {[%clk 0:02:48.7]} 8. O-O {[%clk 0:02:47.3]}
8... Nbd7 {[%clk 0:02:48.8]} 9. c4 {[%clk 0:02:47.1]} 9... Bh5 {[%clk
0:02:27.7]} 10. Re1 {[%clk 0:02:46.1]} 10... Bg6 {[%clk 0:02:10.9]} 11. Rc1
{[%clk 0:02:45.4]} 11... Ng4 {[%clk 0:02:06.3]} 12. e4 {[%clk 0:02:41.3]} 12...
dxe4 {[%clk 0:01:55.8]} 13. Nxe4 {[%clk 0:02:40.6]} 13... Ngf6 {[%clk
0:01:48.2]} 14. Qc2 {[%clk 0:02:29.9]} 14... Nxe4 {[%clk 0:01:44.9]} 15. dxe4
{[%clk 0:02:29]} 15... Bf6 {[%clk 0:01:45.2]} 16. Bxf6 {[%clk 0:02:15.7]} 16...
Nxf6 {[%clk 0:01:46.1]} 17. Ne5 {[%clk 0:02:12.7]} 17... Qc7 {[%clk 0:01:29]}
18. Nxg6 {[%clk 0:02:07.4]} 18... hxg6 {[%clk 0:01:29.9]} 19. Rcd1 {[%clk
0:02:05.9]} 19... Rad8 {[%clk 0:01:28.5]} 20. Qc3 {[%clk 0:02:00.5]} 20... Rxd1
{[%clk 0:01:24]} 21. Rxd1 {[%clk 0:01:58.4]} 21... Rd8 {[%clk 0:01:24.9]} 22.
Rxd8+ {[%clk 0:01:54.8]} 22... Qxd8 {[%clk 0:01:25.8]} 23. Bf3 {[%clk
0:01:53.2]} 23... Qd7 {[%clk 0:01:05.1]} 24. e5 {[%clk 0:01:53.1]} 24... Ne8
{[%clk 0:00:57.5]} 25. Kf1 {[%clk 0:01:46.6]} 25... Nc7 {[%clk 0:00:54]} 26. Ke2
{[%clk 0:01:42.6]} 26... Na6 {[%clk 0:00:47.2]} 27. Ke3 {[%clk 0:01:32.7]} 27...
Nc5 {[%clk 0:00:41.1]} 28. Qd4 {[%clk 0:01:31.8]} 28... Qxd4+ {[%clk 0:00:22.6]}
29. Kxd4 {[%clk 0:01:31.5]} 29... Nd7 {[%clk 0:00:23.5]} 30. b4 {[%clk
0:01:29.2]} 30... Kf8 {[%clk 0:00:19.7]} 31. a4 {[%clk 0:01:26.2]} 31... Ke7
{[%clk 0:00:20.6]} 32. a5 {[%clk 0:01:25.9]} 32... Nb8 {[%clk 0:00:18.9]} 33. b5
{[%clk 0:01:20.8]} 33... Kd7 {[%clk 0:00:18.5]} 34. Kc5 {[%clk 0:01:20.1]} 34...
cxb5 {[%clk 0:00:16.4]} 35. cxb5 {[%clk 0:01:19.5]} 35... Kc7 {[%clk 0:00:15.2]}
36. b6+ {[%clk 0:01:11.7]} 36... axb6+ {[%clk 0:00:13.8]} 37. axb6+ {[%clk
0:01:11.6]} 37... Kc8 {[%clk 0:00:11.4]} 38. Kd6 {[%clk 0:01:11.4]} 38... Nc6
{[%clk 0:00:11.6]} 39. Bxc6 {[%clk 0:01:10.1]} 39... bxc6 {[%clk 0:00:12.5]} 40.
Kxc6 {[%clk 0:01:10.2]} 40... Kb8 {[%clk 0:00:12.8]} 41. b7 {[%clk 0:01:03.7]}
1-0

[Event "Early-Titled-Tuesday-Blitz-April-02-2024"]
[Site "Chess.com"]
[Date "2024.04.02"]
[Round "9"]
[White "only_strong_moves"]
[Black "PolandHussars"]
[Result "1-0"]
[WhiteElo "2744"]
[BlackElo "2580"]
[TimeControl "180+1"]
[EndTime "9:44:49 PDT"]
[Termination "only_strong_moves won on time"]

1. Nc3 {[%clk 0:03:00.9]} 1... d5 {[%clk 0:02:56.8]} 2. e4 {[%clk 0:03:00.7]}
2... d4 {[%clk 0:02:53.7]} 3. Nce2 {[%clk 0:03:00.7]} 3... e5 {[%clk 0:02:51.2]}
4. c3 {[%clk 0:03:01]} 4... d3 {[%clk 0:02:42.7]} 5. Ng3 {[%clk 0:03:01.3]} 5...
c5 {[%clk 0:02:29.3]} 6. Qa4+ {[%clk 0:03:00.7]} 6... Nc6 {[%clk 0:02:21.5]} 7.
Qc4 {[%clk 0:03:00.3]} 7... Nf6 {[%clk 0:02:12]} 8. Qxd3 {[%clk 0:02:59.2]} 8...
Be6 {[%clk 0:02:06.6]} 9. Nf3 {[%clk 0:02:56.6]} 9... Qc7 {[%clk 0:01:59.9]} 10.
Ng5 {[%clk 0:02:54]} 10... Rd8 {[%clk 0:01:57.4]} 11. Nxe6 {[%clk 0:02:53.4]}
11... fxe6 {[%clk 0:01:57.1]} 12. Qc4 {[%clk 0:02:53.7]} 12... Qd6 {[%clk
0:01:56.7]} 13. Be2 {[%clk 0:02:48.9]} 13... Be7 {[%clk 0:01:56.6]} 14. O-O
{[%clk 0:02:48.5]} 14... O-O {[%clk 0:01:56.5]} 15. d3 {[%clk 0:02:43.1]} 15...
a6 {[%clk 0:01:48.9]} 16. a4 {[%clk 0:02:42.6]} 16... Na5 {[%clk 0:01:39.8]} 17.
Qa2 {[%clk 0:02:41.7]} 17... Kh8 {[%clk 0:01:40.4]} 18. Be3 {[%clk 0:02:40.4]}
18... Qc7 {[%clk 0:01:26]} 19. Qxe6 {[%clk 0:02:38.3]} 19... Rfe8 {[%clk
0:01:20.6]} 20. Qh3 {[%clk 0:02:35.1]} 20... Nb3 {[%clk 0:01:19.2]} 21. Rad1
{[%clk 0:02:33.2]} 21... Qd7 {[%clk 0:01:19.6]} 22. Qxd7 {[%clk 0:02:26.9]}
22... Rxd7 {[%clk 0:01:20.5]} 23. f4 {[%clk 0:02:27.3]} 23... exf4 {[%clk
0:01:17.9]} 24. Bxf4 {[%clk 0:02:28.2]} 24... Bf8 {[%clk 0:01:13.4]} 25. Nf5
{[%clk 0:02:22.9]} 25... Red8 {[%clk 0:01:06.9]} 26. Bg5 {[%clk 0:02:22.3]}
26... Re8 {[%clk 0:01:02.2]} 27. Nxg7 {[%clk 0:02:15.5]} 27... Bxg7 {[%clk
0:01:01.9]} 28. Bxf6 {[%clk 0:02:16]} 28... c4 {[%clk 0:00:58.3]} 29. Bxg7+
{[%clk 0:02:15.6]} 29... Rxg7 {[%clk 0:00:56.5]} 30. dxc4 {[%clk 0:02:15.4]}
30... Rxe4 {[%clk 0:00:56.4]} 31. Bf3 {[%clk 0:02:14.2]} 31... Re8 {[%clk
0:00:56]} 32. Rfe1 {[%clk 0:02:10.3]} 32... Rf8 {[%clk 0:00:55.7]} 33. Rf1
{[%clk 0:02:04.7]} 33... Nc5 {[%clk 0:00:54.4]} 34. a5 {[%clk 0:02:03.6]} 34...
Nb3 {[%clk 0:00:53.7]} 35. Bd5 {[%clk 0:02:02.2]} 35... Re8 {[%clk 0:00:50.8]}
36. Rde1 {[%clk 0:02:01]} 36... Rd8 {[%clk 0:00:50.9]} 37. h4 {[%clk 0:01:56.3]}
37... Nxa5 {[%clk 0:00:51.1]} 38. h5 {[%clk 0:01:56.8]} 38... b5 {[%clk
0:00:49.5]} 39. h6 {[%clk 0:01:55.9]} 39... Rc7 {[%clk 0:00:48.4]} 40. Rd1
{[%clk 0:01:41.2]} 40... bxc4 {[%clk 0:00:47.7]} 41. Bxc4 {[%clk 0:01:41.5]}
41... Rb8 {[%clk 0:00:43.3]} 42. Bxa6 {[%clk 0:01:40.2]} 42... Rc6 {[%clk
0:00:43.8]} 43. Bd3 {[%clk 0:01:37]} 43... Rxh6 {[%clk 0:00:43.9]} 44. b4 {[%clk
0:01:36.8]} 44... Nc6 {[%clk 0:00:43.3]} 45. Be4 {[%clk 0:01:37.2]} 45... Ne5
{[%clk 0:00:43.5]} 46. Rd5 {[%clk 0:01:27.6]} 46... Ng4 {[%clk 0:00:42.3]} 47.
Rd4 {[%clk 0:01:26.6]} 47... Rc8 {[%clk 0:00:38.2]} 48. Bf5 {[%clk 0:01:23.3]}
48... Ne3 {[%clk 0:00:38.6]} 49. Bxc8 {[%clk 0:01:23]} 49... Nxf1 {[%clk
0:00:39.3]} 50. Kxf1 {[%clk 0:01:23.8]} 50... Rc6 {[%clk 0:00:39.6]} 51. Rd8+
{[%clk 0:01:21.9]} 51... Kg7 {[%clk 0:00:38.6]} 52. b5 {[%clk 0:01:22]} 52...
Rxc3 {[%clk 0:00:38.9]} 53. b6 {[%clk 0:01:22.6]} 53... Rxc8 {[%clk 0:00:38.7]}
54. Rxc8 {[%clk 0:01:22.2]} 1-0

[Event "Early-Titled-Tuesday-Blitz-April-02-2024"]
[Site "Chess.com"]
[Date "2024.04.02"]
[Round "9"]
[White "wqws"]
[Black "Manukyan_Artak"]
[Result "0-1"]
[WhiteElo "2713"]
[BlackElo "2578"]
[TimeControl "180+1"]
[EndTime "9:44:50 PDT"]
[Termination "Manukyan_Artak won by resignation"]

1. e4 {[%clk 0:02:59.9]} 1... c6 {[%clk 0:03:00.3]} 2. Ne2 {[%clk 0:02:59.9]}
2... d5 {[%clk 0:03:01.2]} 3. e5 {[%clk 0:03:00]} 3... c5 {[%clk 0:03:01]} 4. d4
{[%clk 0:03:00.1]} 4... Nc6 {[%clk 0:03:01.3]} 5. c3 {[%clk 0:02:59.7]} 5... a5
{[%clk 0:02:50.4]} 6. Nd2 {[%clk 0:02:59]} 6... cxd4 {[%clk 0:02:47.5]} 7. cxd4
{[%clk 0:02:58.9]} 7... e6 {[%clk 0:02:40.5]} 8. Nf3 {[%clk 0:02:56.5]} 8... Bd7
{[%clk 0:02:39.6]} 9. Nc3 {[%clk 0:02:54]} 9... Rc8 {[%clk 0:02:37.3]} 10. Bd3
{[%clk 0:02:54]} 10... Nb4 {[%clk 0:02:36.8]} 11. Bb1 {[%clk 0:02:53.4]} 11...
Nh6 {[%clk 0:02:24.5]} 12. O-O {[%clk 0:02:50]} 12... Be7 {[%clk 0:02:23.5]} 13.
Bxh6 {[%clk 0:02:48.7]} 13... gxh6 {[%clk 0:02:23.5]} 14. Qd2 {[%clk 0:02:49]}
14... Bg5 {[%clk 0:02:23.4]} 15. Nxg5 {[%clk 0:02:48.9]} 15... hxg5 {[%clk
0:02:21.8]} 16. f4 {[%clk 0:02:49.3]} 16... g4 {[%clk 0:02:16]} 17. f5 {[%clk
0:02:49.1]} 17... exf5 {[%clk 0:02:15.9]} 18. Bxf5 {[%clk 0:02:48.7]} 18... Bxf5
{[%clk 0:02:15.9]} 19. Rxf5 {[%clk 0:02:49.6]} 19... O-O {[%clk 0:02:05.3]} 20.
Raf1 {[%clk 0:02:48.1]} 20... Rc6 {[%clk 0:01:48.8]} 21. a3 {[%clk 0:02:47.4]}
21... Na6 {[%clk 0:01:46]} 22. Rf6 {[%clk 0:02:42.4]} 22... Nc7 {[%clk 0:01:36]}
23. Qh6 {[%clk 0:02:41.8]} 23... Rxf6 {[%clk 0:01:29.2]} 24. exf6 {[%clk
0:02:36.4]} 24... Ne6 {[%clk 0:01:28]} 25. Rf5 {[%clk 0:02:33.7]} 25... Qb6
{[%clk 0:01:21.2]} 26. Ne2 {[%clk 0:02:24.1]} 26... Qxb2 {[%clk 0:01:19.1]} 27.
Re5 {[%clk 0:02:14.4]} 27... Qb1+ {[%clk 0:01:08.8]} 28. Kf2 {[%clk 0:02:13.9]}
28... Qg6 {[%clk 0:01:08.9]} 29. Qxg6+ {[%clk 0:02:13.1]} 29... hxg6 {[%clk
0:01:07.8]} 30. Rxd5 {[%clk 0:02:13.6]} 30... Rd8 {[%clk 0:00:57.5]} 31. Rxd8+
{[%clk 0:02:12.8]} 31... Nxd8 {[%clk 0:00:57.3]} 32. d5 {[%clk 0:02:13.7]} 32...
b5 {[%clk 0:00:56.2]} 33. Ke3 {[%clk 0:02:11.9]} 33... Nb7 {[%clk 0:00:52.7]}
34. Kd4 {[%clk 0:02:11.9]} 34... g5 {[%clk 0:00:49.6]} 35. Ng3 {[%clk 0:02:05]}
35... Kh7 {[%clk 0:00:48.5]} 36. Ne4 {[%clk 0:02:04.2]} 36... Kg6 {[%clk
0:00:47.7]} 37. d6 {[%clk 0:02:01]} 37... b4 {[%clk 0:00:41.5]} 38. axb4 {[%clk
0:01:56.4]} 38... axb4 {[%clk 0:00:40.4]} 39. d7 {[%clk 0:01:54.2]} 39... Nd8
{[%clk 0:00:29.3]} 40. Ke5 {[%clk 0:01:53.3]} 40... b3 {[%clk 0:00:28.5]} 41.
Nd2 {[%clk 0:01:42.4]} 41... b2 {[%clk 0:00:28.2]} 42. Nb1 {[%clk 0:01:39.5]}
42... Ne6 {[%clk 0:00:24.5]} 43. Nc3 {[%clk 0:01:38.7]} 43... Nd8 {[%clk
0:00:20.1]} 44. Kd6 {[%clk 0:01:28.9]} 44... Kxf6 {[%clk 0:00:18.2]} 45. Ne4+
{[%clk 0:01:27.8]} 45... Kg6 {[%clk 0:00:16.3]} 46. Nd2 {[%clk 0:01:25.7]} 46...
f5 {[%clk 0:00:12.2]} 47. Ke7 {[%clk 0:01:21.3]} 47... Nf7 {[%clk 0:00:12.3]}
48. d8=Q {[%clk 0:01:14.9]} 48... Nxd8 {[%clk 0:00:11.8]} 49. Kxd8 {[%clk
0:01:15.1]} 49... f4 {[%clk 0:00:12.7]} 50. Ke7 {[%clk 0:01:13.1]} 50... f3
{[%clk 0:00:13]} 51. gxf3 {[%clk 0:01:12.4]} 51... gxf3 {[%clk 0:00:13.9]} 52.
Ke6 {[%clk 0:01:13.2]} 0-1

[Event "Early-Titled-Tuesday-Blitz-April-02-2024"]
[Site "Chess.com"]
[Date "2024.04.02"]
[Round "9"]
[White "flawian2008"]
[Black "Zq1"]
[Result "1/2-1/2"]
[WhiteElo "2503"]
[BlackElo "2613"]
[TimeControl "180+1"]
[EndTime "9:44:51 PDT"]
[Termination "Game drawn by repetition"]

1. d4 {[%clk 0:03:00.9]} 1... Nf6 {[%clk 0:02:59]} 2. c4 {[%clk 0:03:01.3]} 2...
a6 {[%clk 0:02:58.2]} 3. Nf3 {[%clk 0:02:58.6]} 3... e6 {[%clk 0:02:57.2]} 4.
Nc3 {[%clk 0:02:58.9]} 4... c5 {[%clk 0:02:57.1]} 5. g3 {[%clk 0:02:42.2]} 5...
cxd4 {[%clk 0:02:50.7]} 6. Nxd4 {[%clk 0:02:42.2]} 6... Qc7 {[%clk 0:02:50.8]}
7. Qd3 {[%clk 0:02:39.2]} 7... Nc6 {[%clk 0:02:48.3]} 8. Nxc6 {[%clk 0:02:39.7]}
8... Qxc6 {[%clk 0:02:47.8]} 9. e4 {[%clk 0:02:36.5]} 9... Bb4 {[%clk
0:02:36.1]} 10. Bg2 {[%clk 0:02:36.6]} 10... Qc7 {[%clk 0:02:14.1]} 11. O-O
{[%clk 0:02:35.1]} 11... Be7 {[%clk 0:02:12.6]} 12. Bf4 {[%clk 0:02:34.7]} 12...
d6 {[%clk 0:02:10.9]} 13. Rfd1 {[%clk 0:02:34.4]} 13... e5 {[%clk 0:02:07.6]}
14. Bg5 {[%clk 0:02:34.8]} 14... Be6 {[%clk 0:02:03.2]} 15. Nd5 {[%clk
0:02:35.3]} 15... Nxd5 {[%clk 0:01:42.1]} 16. exd5 {[%clk 0:02:35.8]} 16... Bg4
{[%clk 0:01:31.5]} 17. Bxe7 {[%clk 0:02:18.5]} 17... Bxd1 {[%clk 0:01:27.2]} 18.
Bxd6 {[%clk 0:02:18.8]} 18... Qxd6 {[%clk 0:01:22.6]} 19. Rxd1 {[%clk
0:02:19.3]} 19... O-O {[%clk 0:01:21.6]} 20. Qe3 {[%clk 0:02:19.1]} 20... Rac8
{[%clk 0:01:18.3]} 21. g4 {[%clk 0:02:11.9]} 21... Rxc4 {[%clk 0:01:15.1]} 22.
Be4 {[%clk 0:02:10.4]} 22... g6 {[%clk 0:01:05.2]} 23. f3 {[%clk 0:01:52.3]}
23... Qc5 {[%clk 0:01:02.8]} 24. Qxc5 {[%clk 0:01:40.6]} 24... Rxc5 {[%clk
0:01:02.6]} 25. Kf2 {[%clk 0:01:41.5]} 25... f5 {[%clk 0:00:56.7]} 26. gxf5
{[%clk 0:01:42.4]} 26... gxf5 {[%clk 0:00:56.2]} 27. Bb1 {[%clk 0:01:43.3]}
27... Kf7 {[%clk 0:00:51.5]} 28. Bxf5 {[%clk 0:01:41]} 28... Kf6 {[%clk
0:00:49]} 29. Bxh7 {[%clk 0:01:36.4]} 29... Rh8 {[%clk 0:00:47.3]} 30. Be4
{[%clk 0:01:36.2]} 30... Rxh2+ {[%clk 0:00:46.5]} 31. Kg3 {[%clk 0:01:32.5]}
31... Rxb2 {[%clk 0:00:37.5]} 32. Rh1 {[%clk 0:01:23.5]} 32... Rc8 {[%clk
0:00:29.1]} 33. Rh6+ {[%clk 0:01:18.8]} 33... Ke7 {[%clk 0:00:20.1]} 34. d6+
{[%clk 0:01:14.5]} 34... Kf7 {[%clk 0:00:19.6]} 35. Rh7+ {[%clk 0:01:14]} 35...
Ke6 {[%clk 0:00:17.4]} 36. Rh6+ {[%clk 0:01:14.6]} 36... Kf7 {[%clk 0:00:16.4]}
37. Bd5+ {[%clk 0:01:06.9]} 37... Kg7 {[%clk 0:00:15.7]} 38. Re6 {[%clk
0:01:07.6]} 38... Rd8 {[%clk 0:00:15.3]} 39. Kg4 {[%clk 0:01:02.7]} 39... Rb6
{[%clk 0:00:14.1]} 40. Re7+ {[%clk 0:01:00.1]} 40... Kf6 {[%clk 0:00:13.2]} 41.
Re6+ {[%clk 0:00:58.1]} 41... Kg7 {[%clk 0:00:13.2]} 42. Re7+ {[%clk 0:00:58.1]}
42... Kf8 {[%clk 0:00:12.4]} 43. Rf7+ {[%clk 0:00:49.8]} 43... Ke8 {[%clk
0:00:11.8]} 44. Re7+ {[%clk 0:00:50.4]} 44... Kf8 {[%clk 0:00:11.6]} 45. Rf7+
{[%clk 0:00:45.2]} 45... Ke8 {[%clk 0:00:11.7]} 46. Re7+ {[%clk 0:00:45.9]}
46... Kf8 {[%clk 0:00:11.9]} 1/2-1/2